bitfinex/quotes_ETHUSD_20241215
["timestamp","ask_amount","ask_price","bid_price","bid_amount"]
[1734293197532,0.23897081,3898.5,3898.4,0.8187]
[1734293197709,3.56913954,3899.3,3898.4,0.8187]
[1734293197908,0.6471047,3899.2,3898.4,0.8187]
[1734293198115,0.23897589,3899.1,3898.4,0.8187]
[1734293198313,0.23897589,3899.0,3898.4,0.8187]
[1734293198513,0.23897589,3898.9,3898.4,0.8187]
[1734293198745,0.23897589,3898.8,3898.4,0.8187]
[1734293198974,0.23897589,3898.7,3898.4,0.8187]
[1734293199254,0.23897589,3898.6,3898.4,0.8187]
[1734293199421,0.23897589,3898.5,3898.4,0.8187]
[1734293199823,0.29995367,3898.5,3898.4,0.8187]
[1734293201125,0.06097778,3898.5,3898.4,0.8187]
[1734293201450,2.56462,3899.2,3898.4,0.8187]
[1734293201653,0.06083161,3898.5,3898.4,0.8187]
[1734293201947,2.56469,3899.1,3898.4,0.8187]
[1734293202149,0.06083161,3898.5,3898.4,0.8187]
[1734293202353,0.23898993,3898.5,3898.4,0.8187]
[1734293202684,0.29982641,3898.5,3898.4,0.8187]
[1734293202902,0.06083648,3898.5,3898.4,0.8187]
[1734293203018,0.56241515,3898.5,3897.7,0.8138]
[1734293203215,0.23899802,3898.4,3897.7,0.8138]
[1734293203419,0.23899802,3898.3,3897.7,0.8138]
[1734293203650,3.56919954,3899.2,3897.7,0.8138]
[1734293203651,0.23899802,3898.2,3898.0,0.8138]
[1734293203857,0.23899802,3898.1,3898.0,0.8138]
[1734293204149,0.23902834,3898.1,3898.0,0.8138]
[1734293204731,2.56488,3898.9,3898.0,0.8138]
[1734293204939,0.23905316,3898.8,3898.0,0.8138]
[1734293205122,0.23905316,3898.7,3898.0,0.8138]
[1734293205449,0.23905316,3898.6,3898.0,0.8138]
[1734293205662,0.23905316,3898.5,3898.0,0.8138]
[1734293205956,0.23905316,3898.4,3898.0,0.8138]
[1734293206146,0.23905316,3898.3,3898.0,0.8138]
[1734293206343,2.56475,3899.1,3898.0,0.8138]
[1734293206655,0.30006318,3899.0,3898.0,0.8138]
[1734293206967,0.30006318,3899.0,3898.2,1.00451954]
[1734293206968,0.23910009,3898.9,3898.2,1.00451954]
[1734293207148,0.23910009,3898.8,3898.3,0.8138]
[1734293207349,0.23910009,3898.7,3898.3,0.8138]
[1734293207519,0.23910009,3898.6,3898.3,0.8138]
[1734293207726,0.23909985,3898.5,3898.3,0.8138]
[1734293207925,2.56463,3899.2,3898.3,0.8138]
[1734293208245,0.23909399,3899.1,3898.3,0.8138]
[1734293208446,0.23909399,3899.0,3898.3,0.8138]
[1734293208634,0.23909399,3898.9,3898.3,0.8138]
[1734293208835,0.23909399,3898.9,3898.2,4.00451954]
[1734293208836,0.23909399,3898.8,3898.5,0.8138]
[1734293209139,0.06094558,3898.8,3898.5,0.8138]
[1734293209466,0.23914253,3898.7,3898.5,0.8138]
[1734293209962,0.23911349,3898.6,3898.5,0.8138]
[1734293210157,2.56436,3899.6,3898.5,1.55314194]
[1734293210401,1.60090646,3899.8,3898.8,1.00451954]
[1734293210402,0.23912847,3899.5,3898.8,1.00451954]
[1734293210682,0.23912847,3899.5,3899.4,1.81831954]
[1734293210683,0.06134787,3899.5,3899.4,1.81831954]
[1734293210821,0.30049431,3899.5,3899.4,1.81831954]
[1734293211025,1.06727097,3900.5,3899.5,0.8138]
[1734293211237,1.30624207,3900.4,3899.5,0.8138]
[1734293211444,4.71216078,3900.3,3899.5,0.8138]
[1734293211642,2.8029411,3900.2,3899.5,0.8138]
[1734293211935,0.2389711,3900.1,3899.5,0.8138]
[1734293212136,0.2389711,3900.0,3899.5,0.8138]
[1734293212424,0.2389711,3899.9,3899.5,0.8138]
[1734293212660,0.2389711,3899.8,3899.5,0.8138]
[1734293212956,0.2389711,3899.7,3899.5,0.8138]
[1734293213175,2.56397,3900.2,3899.5,0.8138]
[1734293213375,0.23878022,3900.1,3899.5,0.8138]
[1734293213575,0.23878022,3900.0,3899.5,0.8138]
[1734293213886,0.23878022,3899.9,3899.5,0.8138]
[1734293214108,0.23878022,3899.8,3899.5,0.8138]
[1734293214407,0.05855189,3899.8,3899.5,0.8138]
[1734293214549,2.56385,3900.4,3899.5,0.8138]
[1734293214751,0.55383308,3900.3,3899.5,0.8138]
[1734293214952,0.23870638,3900.2,3899.5,0.8138]
[1734293215185,0.29737217,3900.1,3899.5,0.8138]
[1734293215343,0.23870638,3900.0,3899.5,0.8138]
[1734293215546,0.05858986,3899.9,3899.5,0.8138]
[1734293215764,0.23864331,3900.3,3899.5,0.8138]
[1734293215982,0.29736247,3900.2,3899.5,0.8138]
[1734293216187,0.23864412,3900.1,3899.5,0.8138]
[1734293216502,0.23864412,3900.0,3899.7,1.00451954]
[1734293216705,0.05868039,3900.1,3900.0,0.8275]
[1734293217058,1.60090646,3901.2,3900.0,0.8275]
[1734293217059,2.56334,3901.2,3900.0,0.8275]
[1734293217345,0.23850182,3901.1,3900.0,0.8275]
[1734293217506,0.23850182,3901.0,3900.0,0.8275]
[1734293217664,1.06727097,3901.4,3900.0,0.8275]
[1734293217665,0.23850182,3900.9,3900.0,0.8275]
[1734293217861,2.56365,3900.7,3900.0,0.8275]
[1734293218101,2.56386,3900.4,3899.4,0.8275]
[1734293218409,0.518738,3900.3,3899.4,0.8275]
[1734293218605,0.23850182,3900.2,3899.4,0.8275]
[1734293218901,0.23841145,3900.2,3899.4,0.8275]
[1734293219067,0.23841145,3900.1,3899.4,0.8275]
[1734293219268,0.28023618,3900.3,3899.4,0.8275]
[1734293219269,0.23841145,3900.0,3899.4,0.8275]
[1734293219468,0.28023618,3900.3,3899.4,0.8275]
[1734293219677,0.52280633,3900.2,3899.4,0.8275]
[1734293219981,0.52280633,3900.2,3899.6,1.00451954]
[1734293219982,0.23839671,3900.1,3899.6,1.00451954]
[1734293220179,1.06727097,3900.9,3899.7,0.8275]
[1734293220382,0.23841075,3900.8,3899.7,0.8275]
[1734293220583,0.23841075,3900.7,3899.7,0.8275]
[1734293220796,0.23841075,3900.6,3899.7,0.8275]
[1734293221112,2.80219171,3900.5,3899.7,0.8275]
[1734293221314,0.23841171,3900.4,3899.7,0.8275]
[1734293221618,0.23841171,3900.3,3899.7,0.8275]
[1734293221794,0.23841171,3900.2,3899.7,0.8275]
[1734293222403,2.56368,3900.7,3899.7,0.8275]
[1734293222607,0.23836659,3900.6,3899.7,0.8275]
[1734293222807,0.23836659,3900.5,3899.7,0.8275]
[1734293223129,0.23836659,3900.4,3899.7,0.8275]
[1734293223282,0.23836659,3900.3,3899.7,0.8275]
[1734293224107,0.28021066,3900.4,3899.7,0.8275]
[1734293224318,0.23833308,3900.3,3900.2,0.00984985]
[1734293224497,0.23831905,3900.3,3900.2,0.00984985]
[1734293225029,0.23831905,3900.4,3900.2,0.00984985]
[1734293225323,0.49469905,3900.4,3900.2,0.00984985]
[1734293225621,0.23831905,3900.3,3900.2,0.00984985]
[1734293225783,0.25638,3900.4,3900.2,0.00984985]
[1734293226182,0.23825819,3900.3,3900.2,0.00984985]
[1734293226485,0.25638,3900.4,3900.2,0.78044985]
[1734293226852,0.48736013,3900.8,3900.2,1.78496939]
[1734293226981,0.23825746,3900.7,3900.2,1.78496939]
[1734293227303,3.2935298,3901.4,3900.3,0.7706]
[1734293227477,0.23823918,3901.3,3900.3,0.7706]
[1734293227681,2.80155918,3901.2,3900.3,0.7706]
[1734293227884,0.23823918,3901.1,3900.3,0.7706]
[1734293228085,0.5183951,3901.1,3900.3,0.7706]
[1734293228384,0.23823918,3901.0,3900.3,0.7706]
[1734293228588,0.29723331,3901.0,3900.3,0.7706]
[1734293228788,0.23823918,3900.9,3900.3,0.7706]
[1734293228983,0.05891824,3900.8,3900.3,0.7706]
[1734293229382,0.28015592,3901.1,3900.3,0.7706]
[1734293229582,0.52252579,3901.0,3900.3,0.7706]
[1734293229782,0.2381782,3900.9,3900.3,0.7706]
[1734293230397,0.05943427,3900.8,3900.3,0.7706]
[1734293230915,0.28434759,3901.0,3900.3,0.7706]
[1734293231126,0.05944499,3900.7,3900.3,0.7706]
[1734293231417,0.28434759,3901.0,3900.3,0.7706]
[1734293231963,0.05954035,3900.9,3900.3,0.7706]
[1734293232804,0.05954035,3900.9,3900.5,1.00451954]
[1734293232990,0.05954035,3900.9,3900.6,0.7706]
[1734293233315,0.05953647,3900.8,3900.6,0.7706]
[1734293233689,2.563,3901.7,3900.6,0.7706]
[1734293233890,0.29811316,3901.6,3900.6,0.7706]
[1734293234202,0.23820392,3901.5,3900.6,0.7706]
[1734293234408,0.23820392,3901.5,3900.7,0.7706]
[1734293234702,0.05983226,3901.4,3900.7,0.7706]
[1734293235021,0.23823925,3901.3,3900.7,0.7706]
[1734293235386,0.05996565,3901.2,3900.7,0.7706]
[1734293235591,0.05996565,3901.2,3900.9,0.7706]
[1734293235798,0.05996565,3901.2,3900.9,0.50905512]
[1734293236025,0.51715387,3902.3,3901.0,0.7706]
[1734293236225,2.56305,3901.6,3901.0,0.7706]
[1734293236532,0.29869455,3901.5,3901.0,0.7706]
[1734293236712,0.2383815,3901.4,3901.0,0.7706]
[1734293237068,2.8015715,3901.4,3901.0,0.7706]
[1734293237199,0.2383815,3901.3,3901.0,0.7706]
[1734293237554,0.29861867,3901.3,3901.0,0.7706]
[1734293237698,0.2383815,3901.2,3901.0,0.7706]
[1734293238039,2.56319,3901.4,3901.0,0.7706]
[1734293238040,0.06016129,3901.1,3901.0,0.7706]
[1734293238335,2.56319,3901.4,3901.0,0.7706]
[1734293238534,0.2384664,3901.3,3901.0,0.7706]
[1734293238737,0.29870357,3901.3,3901.0,0.7706]
[1734293238904,0.2384664,3901.2,3901.0,0.7706]
[1734293239479,0.06016129,3901.1,3901.0,0.7706]
[1734293239615,0.29862769,3901.1,3901.0,0.7706]
[1734293239799,0.06016129,3901.1,3901.0,0.7706]
[1734293240002,2.56353,3900.9,3900.3,0.7575]
[1734293240208,0.06004746,3900.8,3900.3,0.7575]
[1734293240427,0.29869691,3900.8,3900.3,0.7575]
[1734293240734,0.23864945,3900.7,3900.3,0.7575]
[1734293240953,0.23864945,3900.6,3900.3,0.7575]
[1734293241104,0.23864945,3900.5,3900.3,0.7575]
[1734293241443,0.05992972,3900.4,3900.3,0.7575]
[1734293241599,2.56353,3900.9,3900.3,0.7575]
[1734293241796,0.2386852,3900.8,3900.3,0.7575]
[1734293242010,0.2386852,3900.7,3900.3,0.7575]
[1734293242201,0.2386852,3900.6,3900.3,0.7575]
[1734293242403,0.2386852,3900.5,3900.3,0.7575]
[1734293242604,2.56353,3900.9,3900.3,0.7575]
[1734293242806,0.23874404,3900.8,3900.3,0.7575]
[1734293243109,0.23874404,3900.7,3900.3,0.7575]
[1734293243320,0.23874404,3900.6,3900.3,0.7575]
[1734293243627,0.23878477,3900.5,3900.3,0.7575]
[1734293243937,2.56353,3900.9,3900.3,0.7575]
[1734293244324,0.29886569,3900.8,3900.3,0.7575]
[1734293244625,0.23878416,3900.7,3900.3,0.7575]
[1734293244828,0.23878416,3900.6,3900.3,0.7575]
[1734293245024,0.23878416,3900.5,3900.3,0.7575]
[1734293245236,0.23878416,3900.4,3900.3,0.7575]
[1734293245750,0.23878416,3900.4,3900.2,0.00984985]
[1734293245952,0.23878416,3900.3,3900.2,0.00984985]
[1734293246117,0.29867592,3900.3,3900.2,0.00984985]
[1734293246318,0.23878416,3900.3,3900.2,0.00984985]
[1734293246539,0.29840339,3900.3,3900.2,0.00984985]
[1734293246731,3.14852673,3900.3,3900.2,0.00984985]
[1734293247822,3.14856642,3900.3,3900.2,0.00984985]
[1734293250160,3.14857235,3900.3,3900.2,0.00984985]
[1734293252028,2.90974257,3900.3,3900.2,0.00984985]
[1734293252229,3.14856677,3900.3,3900.2,0.00984985]
[1734293252438,2.90974257,3900.3,3900.2,0.00984985]
[1734293252641,3.1485688,3900.3,3900.2,0.00984985]
[1734293255260,3.14852497,3900.3,3900.2,0.00984985]
[1734293258363,2.90974257,3900.3,3900.2,0.00984985]
[1734293258541,3.14841058,3900.3,3900.2,0.00984985]
[1734293260962,0.58451058,3900.3,3900.2,0.00984985]
[1734293261166,0.29828724,3900.3,3900.2,0.00984985]
[1734293261365,0.29828724,3900.3,3900.2,1.82546939]
[1734293261782,0.29828724,3900.3,3900.2,0.82094985]
[1734293262080,0.29821177,3900.3,3900.2,0.82094985]
[1734293264739,2.86211177,3900.3,3900.2,0.00984985]
[1734293264939,3.14832295,3900.3,3900.2,0.00984985]
[1734293265134,3.14832295,3900.3,3900.2,9.85e-06]
[1734293265135,4.38626375,3900.3,3900.2,9.85e-06]
[1734293265445,10.0708057,3900.3,3900.2,9.85e-06]
[1734293265645,11.72131171,3900.3,3900.2,9.85e-06]
[1734293265878,9.58676976,3900.3,3900.2,9.85e-06]
[1734293266260,9.59696056,3900.3,3900.2,9.85e-06]
[1734293266638,11.73394445,3900.3,3900.2,9.85e-06]
[1734293266857,12.24415297,3900.3,3900.2,9.85e-06]
[1734293267682,10.10716908,3900.3,3900.2,9.85e-06]
[1734293267837,6.86857654,3900.3,3900.2,9.85e-06]
[1734293268049,8.11167916,3900.3,3900.2,9.85e-06]
[1734293268362,8.0636407,3900.3,3900.2,9.85e-06]
[1734293268977,7.5136407,3900.3,3900.2,9.85e-06]
[1734293269533,4.9497407,3900.3,3898.7,1.81561954]
[1734293269666,2.56449,3899.5,3898.7,1.81561954]
[1734293269866,0.23858308,3899.4,3898.7,1.81561954]
[1734293270051,0.23858308,3899.3,3898.7,1.81561954]
[1734293270382,0.23858308,3899.2,3898.7,1.81561954]
[1734293270683,0.23858308,3899.1,3898.7,1.99718149]
[1734293270980,2.5645,3899.4,3898.7,1.99718149]
[1734293270981,0.05794758,3899.0,3898.7,1.99718149]
[1734293271194,0.05794758,3899.0,3898.7,0.99266195]
[1734293271347,2.5646,3899.3,3898.7,0.99266195]
[1734293271682,0.29653754,3899.2,3898.7,0.8111]
[1734293271844,0.23855295,3899.1,3898.7,0.8111]
[1734293272280,0.05790863,3899.0,3898.7,0.8111]
[1734293272841,2.5646,3899.3,3898.7,0.8111]
[1734293273061,0.23853763,3899.2,3898.7,0.8111]
[1734293273282,0.23853763,3899.1,3898.7,0.8111]
[1734293273482,2.5646,3899.3,3898.7,0.8111]
[1734293273669,0.23851363,3899.2,3898.7,0.8111]
[1734293273875,0.23851363,3899.1,3898.7,0.8111]
[1734293274476,2.5646,3899.3,3898.7,0.8111]
[1734293274673,0.23851374,3899.2,3898.7,0.8111]
[1734293274866,0.23851374,3899.1,3898.7,0.8111]
[1734293275061,0.23851374,3899.1,3898.7,1.99718149]
[1734293275287,0.23851374,3899.1,3898.8,0.8111]
[1734293275597,2.56443,3899.5,3898.8,0.8111]
[1734293275797,0.2385211,3899.4,3898.8,0.8111]
[1734293275962,0.2385211,3899.3,3898.8,0.8111]
[1734293276165,0.29650569,3899.2,3898.8,0.8111]
[1734293276398,0.2385211,3899.1,3898.8,0.8111]
[1734293277029,0.05790863,3899.0,3898.8,0.8111]
[1734293277607,2.56443,3899.5,3898.8,0.8111]
[1734293277781,0.05787064,3898.9,3898.8,0.8111]
[1734293277977,2.56443,3899.5,3898.8,0.8111]
[1734293278294,0.05787064,3898.9,3898.8,0.8111]
[1734293278895,2.56443,3899.5,3898.8,0.8111]
[1734293279089,0.05787064,3898.9,3898.8,0.8111]
[1734293279696,2.56443,3899.5,3898.8,0.8111]
[1734293279879,0.23843319,3899.4,3898.8,0.8111]
[1734293280081,0.23843319,3899.3,3898.8,0.8111]
[1734293280277,0.23843319,3899.2,3898.8,0.8111]
[1734293280481,2.56443,3899.5,3898.8,0.8111]
[1734293280681,0.23842486,3899.4,3898.8,0.8111]
[1734293280899,0.23842486,3899.3,3898.8,0.8111]
[1734293281107,0.23842486,3899.2,3898.8,0.8111]
[1734293281295,2.56443,3899.5,3898.8,0.8111]
[1734293281615,0.23841125,3899.4,3898.8,0.8111]
[1734293281782,0.23841125,3899.3,3898.8,1.54916795]
[1734293281977,2.5643,3899.7,3898.8,1.54916795]
[1734293282212,0.23841443,3899.6,3898.8,0.8111]
[1734293282418,0.23841443,3899.5,3898.8,0.8111]
[1734293282582,0.23841443,3899.4,3898.8,0.8111]
[1734293282780,0.23841443,3899.3,3898.8,0.8111]
[1734293282981,0.23841443,3899.2,3898.8,1.54916795]
[1734293283210,2.5643,3899.7,3898.8,1.54916795]
[1734293283520,0.23843137,3899.6,3898.8,0.8111]
[1734293283697,0.23843137,3899.5,3898.8,0.8111]
[1734293283900,0.23843137,3899.4,3898.8,0.8111]
[1734293284119,0.23843137,3899.3,3898.8,0.8111]
[1734293284289,0.23843137,3899.2,3898.8,0.8111]
[1734293284488,2.5643,3899.7,3898.8,0.8111]
[1734293284714,0.23841864,3899.6,3898.8,0.8111]
[1734293284886,0.23841864,3899.5,3898.8,0.8111]
[1734293285088,0.23841864,3899.4,3898.8,0.8111]
[1734293285287,0.23841864,3899.3,3898.8,0.8111]
[1734293285497,0.23841864,3899.2,3898.8,0.8111]
[1734293285695,0.23841864,3899.2,3898.8,1.54916795]
[1734293285912,2.5643,3899.7,3898.8,1.54916795]
[1734293286118,0.23843804,3899.6,3898.8,0.8111]
[1734293286305,2.5643,3899.7,3898.8,0.8111]
[1734293286306,0.23843804,3899.5,3898.8,0.8111]
[1734293286515,2.5643,3899.7,3898.8,0.8111]
[1734293286516,0.23843804,3899.4,3898.8,0.8111]
[1734293286712,0.23843804,3899.3,3898.8,0.8111]
[1734293287026,2.5643,3899.7,3898.8,0.8111]
[1734293287340,1.80093924,3900.3,3899.0,1.00451954]
[1734293287341,0.23845974,3899.6,3899.0,1.00451954]
[1734293287507,0.23845974,3899.5,3899.1,0.7667]
[1734293287825,0.23845974,3899.4,3899.1,0.7667]
[1734293288038,2.56415,3900.0,3899.1,0.7667]
[1734293288347,0.23850303,3899.9,3899.1,0.7667]
[1734293288553,0.29669598,3899.8,3899.1,0.7667]
[1734293288714,0.23853685,3899.7,3899.1,0.7667]
[1734293288914,2.56415,3900.0,3899.1,0.7667]
[1734293288915,0.29665386,3899.6,3899.1,0.7667]
[1734293289116,0.23853685,3899.5,3899.1,0.7667]
[1734293289431,0.05804107,3899.4,3899.1,1.50030995]
[1734293289747,2.56415,3900.0,3899.1,0.7667]
[1734293289956,0.29680047,3899.9,3899.1,0.7667]
[1734293290250,0.23856955,3899.8,3899.1,0.7667]
[1734293290443,0.23856955,3899.7,3899.1,0.7667]
[1734293290617,0.23856955,3899.6,3899.1,0.7667]
[1734293290946,0.29664859,3899.5,3899.1,0.7667]
[1734293291153,0.23856955,3899.4,3899.1,0.7667]
[1734293291450,0.05800309,3899.3,3899.1,0.7667]
[1734293291655,0.05800309,3899.3,3899.1,1.50030995]
[1734293291826,2.56415,3900.0,3899.1,1.50030995]
[1734293292151,2.56415,3900.0,3899.1,0.7667]
[1734293292352,0.29688293,3899.9,3899.1,0.7667]
[1734293292530,0.23865201,3899.8,3899.1,0.7667]
[1734293292727,0.29680699,3899.7,3899.1,0.7667]
[1734293292934,0.23865201,3899.6,3899.1,0.7667]
[1734293293252,0.29673105,3899.5,3899.1,0.7667]
[1734293293546,0.23865201,3899.4,3899.1,0.7667]
[1734293293758,0.2966551,3899.3,3899.1,0.7667]
[1734293294051,0.05800309,3899.3,3899.1,0.7667]
[1734293294272,0.23873266,3899.2,3899.1,0.7667]
[1734293294938,0.23873266,3899.2,3898.5,0.8158]
[1734293295139,0.05792713,3899.1,3898.5,0.8158]
[1734293295320,0.23888185,3899.1,3898.5,0.8158]
[1734293295515,0.296771,3899.0,3898.5,0.8158]
[1734293295721,0.23888185,3898.9,3898.5,0.8158]
[1734293295936,0.29669503,3898.8,3898.5,0.8158]
[1734293296129,2.56457,3899.3,3898.5,0.8158]
[1734293296336,0.29682669,3899.2,3898.5,0.8158]
[1734293296658,0.23886158,3899.1,3898.5,0.8158]
[1734293296817,0.23886158,3899.0,3898.5,0.8158]
[1734293297023,0.23886158,3898.9,3898.5,0.8158]
[1734293297254,0.23886158,3898.8,3898.5,0.8158]
[1734293297457,0.23885472,3898.7,3898.5,0.8158]
[1734293297753,2.56446,3899.5,3898.5,0.8158]
[1734293297754,2.56478,3899.0,3898.5,0.8158]
[1734293297956,2.56446,3899.5,3898.2,0.7581]
[1734293297957,2.56495,3898.8,3898.2,0.7581]
[1734293298118,0.29659856,3898.7,3898.2,0.7581]
[1734293298319,0.23882337,3898.6,3898.2,0.7581]
[1734293298546,2.62272519,3898.7,3898.2,0.7581]
[1734293298547,0.29633265,3898.5,3898.2,0.7581]
[1734293298747,0.23882337,3898.4,3898.2,0.7581]
[1734293298951,0.256478,3898.9,3897.8,1.00451954]
[1734293298952,0.29625666,3898.3,3897.8,1.00451954]
[1734293299164,0.23882337,3898.2,3897.9,0.7581]
[1734293299365,0.05735729,3898.1,3897.9,0.7581]
[1734293299527,2.56509,3898.5,3897.9,0.7581]
[1734293299718,0.29606134,3898.4,3897.9,0.7581]
[1734293299924,0.05747129,3898.4,3897.9,0.7581]
[1734293300262,0.23858478,3898.3,3897.9,0.7581]
[1734293300463,0.05747129,3898.4,3897.9,0.7581]
[1734293300628,0.05739529,3898.2,3897.9,0.7581]
[1734293300829,0.05743329,3898.3,3897.9,0.7581]
[1734293301027,0.05735729,3898.1,3897.9,0.7581]
[1734293301272,0.256478,3898.9,3897.9,0.7581]
[1734293301421,0.2821218,3898.8,3897.9,0.7581]
[1734293301759,2.56516,3898.4,3897.9,0.7581]
[1734293301946,0.29589524,3898.3,3897.9,0.7581]
[1734293302120,0.05743329,3898.3,3897.9,0.7581]
[1734293308583,2.56502,3898.6,3897.9,0.7581]
[1734293308790,0.29548083,3898.5,3897.9,0.7581]
[1734293308988,0.23821998,3898.4,3897.9,0.7581]
[1734293309134,0.05718486,3898.3,3897.9,0.7581]
[1734293309609,0.28605008,3898.5,3897.9,0.7581]
[1734293309768,0.05714686,3898.2,3897.9,0.7581]
[1734293310091,2.56521,3898.4,3897.9,0.7581]
[1734293310286,0.05708939,3898.1,3897.9,0.7581]
[1734293310486,2.85033601,3898.4,3897.9,0.7581]
[1734293310635,0.05705139,3898.0,3897.9,0.7581]
[1734293310838,0.28512601,3898.4,3897.9,0.7581]
[1734293311077,0.05705139,3898.0,3897.9,0.7581]
[1734293311242,2.56502,3898.6,3897.9,0.7581]
[1734293311571,0.23823693,3898.5,3897.9,0.7581]
[1734293311735,0.29543545,3898.4,3897.9,0.7581]
[1734293311937,0.05719852,3898.4,3897.9,0.7581]
[1734293312141,2.821522,3898.6,3897.9,0.7581]
[1734293312469,0.29507035,3898.5,3897.9,0.7581]
[1734293312671,0.2382576,3898.4,3897.9,0.7581]
[1734293313060,0.05673677,3898.3,3897.9,0.7581]
[1734293313663,0.256502,3898.6,3897.9,0.7581]
[1734293313849,0.05669877,3898.2,3897.9,0.7581]
[1734293314054,0.256502,3898.6,3897.9,0.7581]
[1734293314370,0.23823725,3898.5,3897.9,0.7581]
[1734293314542,0.05677476,3898.4,3897.9,0.7581]
[1734293315048,2.56483,3898.9,3897.9,0.7581]
[1734293315249,0.05673677,3898.3,3897.9,0.7581]
[1734293315467,2.821383,3898.8,3897.9,0.7581]
[1734293315693,0.05660954,3898.2,3897.9,0.7581]
[1734293315897,2.821383,3898.8,3897.9,0.7581]
[1734293316058,0.05657154,3898.1,3897.9,0.7581]
[1734293316247,2.821383,3898.8,3897.9,0.7581]
[1734293316444,0.52038393,3898.7,3897.9,0.7581]
[1734293316668,0.23824563,3898.6,3897.9,0.7581]
[1734293316945,0.29496916,3898.5,3897.9,0.7581]
[1734293317145,0.23824563,3898.4,3897.9,0.7581]
[1734293317346,0.05664754,3898.3,3897.9,0.7581]
[1734293317781,0.2821383,3898.7,3897.9,0.7581]
[1734293318080,0.57790023,3898.6,3897.9,0.7581]
[1734293318247,0.23826035,3898.5,3897.9,0.7581]
[1734293318581,0.29312042,3898.4,3897.9,0.7581]
[1734293318813,0.05486007,3898.4,3897.9,0.7581]
[1734293319153,2.56502,3898.6,3897.9,0.7581]
[1734293319459,0.29320007,3898.5,3897.9,0.7581]
[1734293319710,0.23830201,3898.4,3897.9,0.7581]
[1734293319999,0.05482207,3898.3,3897.9,0.7581]
[1734293320350,2.5649,3898.8,3897.9,0.7581]
[1734293320547,0.54987817,3898.7,3897.9,0.7581]
[1734293320751,0.23839953,3898.6,3897.9,0.7581]
[1734293321090,0.29331219,3898.5,3897.9,0.7581]
[1734293321294,0.23839953,3898.4,3897.9,0.7581]
[1734293321495,0.23839953,3898.3,3897.9,0.7581]
[1734293321647,0.05483667,3898.3,3897.9,0.7581]
[1734293322081,2.56496,3898.7,3897.9,0.7581]
[1734293322279,0.05479867,3898.2,3897.4,1.069925]
[1734293322581,1.00451954,3898.3,3896.9,0.27939586]
[1734293322582,2.56561,3897.8,3896.9,0.7831]
[1734293322758,0.29316798,3897.7,3896.9,0.7831]
[1734293322965,0.23854471,3897.6,3896.9,0.7831]
[1734293323160,0.44095302,3897.7,3896.3,1.10546154]
[1734293323161,0.29309196,3897.5,3896.3,1.10546154]
[1734293323478,0.29309196,3897.5,3896.3,0.81863654]
[1734293323479,2.56595,3897.2,3896.3,0.81863654]
[1734293323679,0.23854471,3897.1,3896.3,0.81863654]
[1734293323886,0.23854471,3897.0,3896.3,0.81863654]
[1734293324082,0.23854471,3896.9,3896.3,0.81863654]
[1734293324402,0.054134,3896.9,3896.3,0.81863654]
[1734293324602,2.56569,3897.6,3896.3,3.81863654]
[1734293324785,0.29277978,3897.5,3896.3,3.81863654]
[1734293325082,0.23841767,3897.4,3896.3,3.81863654]
[1734293325283,0.05436211,3897.5,3896.3,3.81863654]
[1734293325619,0.2927507,3897.4,3896.3,3.03553654]
[1734293325750,0.05432409,3897.4,3896.5,1.00451954]
[1734293325959,2.56563,3897.7,3896.6,0.7755]
[1734293326165,0.2916208,3897.6,3896.6,0.7755]
[1734293326371,0.23835139,3897.5,3896.6,0.7755]
[1734293326603,0.29154478,3897.4,3896.6,0.7755]
[1734293326765,0.23835139,3897.3,3896.6,0.7755]
[1734293326965,0.29146875,3897.2,3896.6,0.7755]
[1734293327286,0.23835139,3897.1,3896.6,0.7755]
[1734293327687,0.05304132,3897.0,3896.6,0.7755]
[1734293327890,0.05304132,3897.0,3896.5,0.7755]
[1734293328265,0.28571748,3897.4,3896.5,0.7755]
[1734293328462,0.05306179,3896.9,3896.5,0.7755]
[1734293328662,0.52334113,3897.3,3896.5,0.7755]
[1734293328863,0.05302377,3896.8,3896.5,0.7755]
[1734293329104,0.28513975,3897.3,3896.5,0.7755]
[1734293329305,0.05298087,3896.7,3896.5,0.7755]
[1734293329482,0.28513975,3897.3,3896.5,0.7755]
[1734293329720,0.52323691,3897.2,3896.5,0.7755]
[1734293329912,0.23814194,3897.1,3896.5,0.7755]
[1734293330304,0.05309495,3897.0,3896.5,0.7755]
[1734293330794,0.28509497,3897.2,3896.5,0.7755]
[1734293330988,0.29121178,3897.1,3896.5,0.7755]
[1734293331189,0.29121178,3897.1,3896.3,0.03553654]
[1734293331190,2.80416854,3897.0,3896.3,0.03553654]
[1734293331390,0.29113573,3896.9,3896.3,0.03553654]
[1734293331599,2.56621,3896.8,3896.3,0.03553654]
[1734293331901,0.05297114,3896.7,3896.3,0.03553654]
[1734293332104,0.31488925,3896.7,3896.3,0.03553654]
[1734293332408,0.05286485,3896.6,3896.3,0.03553654]
[1734293332603,2.56607,3897.0,3896.3,0.03553654]
[1734293332804,0.29096604,3896.9,3896.3,0.03553654]
[1734293333006,0.05297893,3896.9,3896.3,0.03553654]
[1734293333186,0.23801392,3896.8,3896.3,0.03553654]
[1734293333381,0.05276635,3896.7,3896.3,0.03553654]
[1734293333583,2.56618,3896.9,3896.3,0.03553654]
[1734293333789,0.29076735,3896.8,3896.3,0.03553654]
[1734293334110,0.05280437,3896.8,3896.3,0.03553654]
[1734293334269,2.56629,3896.7,3896.3,0.03553654]
[1734293334474,2.82827944,3896.6,3896.3,0.03553654]
[1734293334717,2.88091515,3896.6,3896.3,0.03553654]
[1734293337602,2.56647,3896.4,3896.3,0.03553654]
[1734293337910,2.61889798,3896.4,3896.3,0.03553654]
[1734293340627,0.05242798,3896.4,3896.3,0.03553654]
[1734293341120,2.56624,3896.8,3896.3,0.03553654]
[1734293341322,0.0521394,3896.4,3896.3,0.78973654]
[1734293341528,2.56607,3897.0,3896.3,0.78973654]
[1734293341689,0.0519638,3896.4,3896.3,0.78973654]
[1734293341890,2.56607,3897.0,3896.3,0.78973654]
[1734293342223,0.23773551,3896.9,3896.3,0.78973654]
[1734293342543,2.56632,3896.7,3896.3,0.03553654]
[1734293342892,0.2878646,3896.6,3896.3,0.03553654]
[1734293343103,2.56641,3896.5,3896.3,0.03553654]
[1734293343289,2.56647,3896.4,3896.3,0.03553654]
[1734293343487,2.87509478,3896.4,3896.3,0.03553654]
[1734293343721,3.11282371,3896.4,3896.3,0.03553654]